bitfinex-derivatives/quotes_SOLF0:USTF0_20250212
["timestamp","ask_amount","ask_price","bid_price","bid_amount"]
[1739386977529,0.03738049,193.16,193.12,0.03798221]
[1739386977735,14.51975724,193.16,193.12,0.03798221]
[1739386979036,5.1776,193.13,193.12,0.03798221]
[1739386980433,5.1784,193.11,193.07,5.1791]
[1739386980632,5.1784,193.11,193.01,14.48237675]
[1739386980836,14.48237675,193.13,193.01,14.48237675]
[1739386981035,5.1785,193.1,193.06,5.1794]
[1739386981536,5.21200371,193.1,193.06,5.21629067]
[1739386982636,5.1789,193.08,193.06,0.03689067]
[1739386982830,14.51588046,193.1,193.06,0.03689067]
[1739386983535,5.1792,193.07,193.06,0.03689067]
[1739386984137,5.1805,193.02,192.97,5.1817]
[1739386985141,14.48237675,193.07,192.94,3.1858]
[1739386985339,0.03623999,193.01,192.98,0.03356503]
[1739386987741,0.03623999,193.01,193.0,5.1811]
[1739386987935,5.1795,193.06,192.98,14.51594178]
[1739386988137,5.1795,193.06,192.99,1.5569]
[1739386988336,5.1795,193.06,193.02,5.1803]
[1739386988532,5.1795,193.06,192.99,1.5569]
[1739386988737,5.1789,193.09,192.99,1.5569]
[1739386989037,0.03931732,193.06,193.02,0.03336577]
[1739386989347,5.1782,193.11,193.06,5.1792]
[1739386989741,0.03639404,193.1,193.06,5.1792]
[1739386989938,0.03639404,193.1,193.07,0.03826231]
[1739386990138,5.1787,193.09,193.07,0.03826231]
[1739386990341,14.51877079,193.1,193.07,0.03826231]
[1739386990842,5.1789,193.08,193.07,0.03826231]
[1739386991240,14.51877079,193.1,193.07,0.03826231]
[1739386991441,0.03639404,193.1,193.07,0.03826231]
[1739386993138,0.03639404,193.1,193.09,5.1787]
[1739386993743,16.15327675,193.19,193.07,14.52063906]
[1739386993940,14.48237675,193.19,193.08,1.6232]
[1739386994741,19.65857675,193.19,193.13,5.1773]
[1739386995045,0.03733806,193.15,193.12,0.03607678]
[1739386995445,0.03733806,193.15,193.13,5.1776]
[1739386999846,0.03733806,193.15,193.12,0.03607678]
[1739387001044,5.21443806,193.15,193.12,0.03607678]
[1739387002049,0.03733806,193.15,193.12,0.03607678]
[1739387002244,14.48237675,193.13,193.12,0.03607678]
[1739387002647,14.48237675,193.13,193.04,5.1797]
[1739387002848,14.48237675,193.1,193.04,5.1797]
[1739387003349,5.1789,193.08,193.04,5.1797]
[1739387003745,5.21292899,193.08,193.04,5.21447835]
[1739387004250,0.03402899,193.08,193.04,0.03477835]
[1739387004946,0.03402899,193.08,193.07,5.1792]
[1739387005345,14.48237675,193.16,193.04,14.5171551]
[1739387005650,19.65917675,193.16,193.04,14.48237675]
[1739387005850,16.08157675,193.19,193.07,14.48237675]
[1739387006146,16.08157675,193.19,193.08,1.549]
[1739387006649,0.03702945,193.15,193.12,0.0387216]
[1739387006845,0.03702945,193.15,193.1,14.48237675]
[1739387007044,5.1752,193.22,193.17,5.1765]
[1739387007441,5.1752,193.22,193.18,0.03571056]
[1739387007644,0.03311415,193.21,193.18,0.03571056]
[1739387010251,14.48237675,193.19,193.18,0.03571056]
[1739387010553,5.1768,193.17,193.1,5.1782]
[1739387010749,14.48237675,193.19,193.1,5.1782]
[1739387011153,5.1772,193.15,193.1,5.1782]
[1739387011355,14.48237675,193.16,193.09,5.1786]
[1739387011760,14.48237675,193.13,193.11,0.03486915]
[1739387011956,14.48237675,193.13,193.02,1.6199]
[1739387012255,14.48237675,193.13,193.1,0.03820466]
[1739387012554,14.48237675,193.13,193.02,1.6199]
[1739387012755,14.52194972,193.13,193.1,0.03760522]
[1739387012956,14.52194972,193.13,193.02,1.6199]
[1739387013158,5.1778,193.12,193.1,0.03377104]
[1739387013353,14.52194972,193.13,193.02,1.6199]
[1739387013652,14.48237675,193.13,193.09,0.03961072]
[1739387014054,14.51740879,193.13,193.09,0.03961072]
[1739387014256,5.1784,193.1,193.09,0.03961072]
[1739387017050,19.66077675,193.1,193.09,0.03961072]
[1739387017557,5.1796,193.06,193.0,58.94113108]
[1739387018658,0.03447979,193.05,193.01,0.03942987]
[1739387019055,0.03447979,193.05,193.01,5.22022987]
[1739387019959,5.21417979,193.05,193.01,5.22022987]
[1739387021555,5.1801,193.04,193.01,0.03942987]
[1739387023262,5.21427979,193.05,193.01,5.22022987]
[1739387024350,0.03447979,193.05,193.01,0.03942987]
[1739387026165,5.1803,193.03,193.01,0.03942987]
[1739387029067,5.1805,193.02,193.01,0.03942987]
[1739387030671,5.1825,192.95,192.9,5.1836]
[1739387031770,0.03781138,192.94,192.91,0.03275597]
[1739387032269,14.48237675,193.03,192.91,0.03275597]
[1739387032575,14.48237675,193.03,192.89,14.48237675]
[1739387032576,5.1813,193.0,192.95,5.1822]
[1739387033269,5.1813,193.0,192.96,5.182]
[1739387033474,0.03416893,192.99,192.96,0.03695643]
[1739387033774,5.1807,193.02,192.93,1.6017]
[1739387033974,0.03442469,192.99,192.96,0.03716131]
[1739387035174,0.03442469,192.99,192.98,5.1816]
[1739387037168,0.03442469,192.99,192.97,5.1819]
[1739387037573,0.03442469,192.99,192.96,0.03716131]
[1739387038475,0.03442469,192.99,192.96,5.21926131]
[1739387040276,0.03442469,192.99,192.96,0.03716131]
[1739387040881,0.03442469,192.99,192.98,5.1816]
[1739387042677,5.1799,193.05,192.97,14.48237675]
[1739387042884,14.48237675,193.12,192.97,14.48237675]
[1739387043085,14.48237675,193.12,193.0,14.48237675]
[1739387043286,14.48237675,193.12,193.01,3.0948]
[1739387043886,0.0391053,193.08,193.05,0.03830352]
[1739387044185,0.0391053,193.08,193.06,5.1794]
[1739387044387,0.0391053,193.08,193.05,0.03830352]
[1739387046087,0.0391053,193.08,193.07,5.1792]
[1739387047581,0.0391053,193.08,193.06,5.1794]
[1739387048087,0.0391053,193.08,193.05,0.03830352]
[1739387050088,0.0391053,193.08,193.05,5.21790352]
[1739387050387,5.2180053,193.08,193.05,0.03830352]
[1739387051585,14.48237675,193.06,193.05,0.03830352]
[1739387052387,5.1792,193.07,193.05,0.03830352]
[1739387053390,5.1795,193.06,193.05,0.03830352]
[1739387055192,19.66187675,193.06,193.05,0.03830352]
[1739387055689,5.1804,193.03,192.98,5.1814]
[1739387055886,14.48237675,193.03,192.94,3.2941]
[1739387056289,5.1809,193.01,192.95,5.1822]
[1739387056892,0.03680226,193.0,192.96,0.03663215]
[1739387057592,5.21810226,193.0,192.96,0.03663215]
[1739387057891,0.03680226,193.0,192.96,0.03663215]
[1739387058095,5.1815,192.99,192.96,0.03663215]
[1739387058403,14.51917901,193.0,192.96,0.03663215]
[1739387058696,14.48237675,192.97,192.96,0.03663215]
[1739387059393,19.66427675,192.97,192.96,0.03663215]
[1739387059898,14.51917901,193.0,192.96,0.03663215]
[1739387060100,0.03680226,193.0,192.96,0.03663215]
[1739387060294,0.03680226,193.0,192.97,5.1818]
[1739387060799,0.03680226,193.0,192.96,0.03663215]
[1739387061300,14.51917901,193.0,192.96,0.03663215]
[1739387061500,19.70047901,193.0,192.96,0.03663215]
[1739387061998,14.51917901,193.0,192.96,0.03663215]
[1739387062300,5.1819,192.97,192.96,0.03663215]
[1739387065395,5.1826,192.95,192.89,5.1838]
[1739387066598,5.183,192.93,192.9,0.03482764]
[1739387066795,23.25851029,192.94,192.9,0.03482764]
[1739387067096,5.1834,192.92,192.9,0.03482764]
[1739387067298,23.25851029,192.94,192.9,0.03482764]
[1739387068201,5.1835,192.91,192.9,0.03482764]
[1739387070296,0.03691838,192.94,192.9,0.03482764]
[1739387070502,5.183,192.93,192.9,0.03482764]
[1739387071301,5.1832,192.92,192.9,0.03482764]
[1739387072295,5.183,192.93,192.9,0.03482764]
[1739387072499,0.03691838,192.94,192.9,0.03482764]
[1739387072898,0.03691838,192.94,192.91,5.1834]
[1739387073404,0.03691838,192.94,192.9,0.03482764]
[1739387074203,23.25851029,192.94,192.9,0.03482764]
[1739387075001,5.1835,192.91,192.9,0.03482764]
[1739387082303,5.1843,192.88,192.83,5.1856]
[1739387082601,23.22159191,192.91,192.83,5.1856]
[1739387082992,23.22159191,192.91,192.81,3.2267]
[1739387083199,5.185,192.86,192.81,8.4127]
[1739387083396,5.185,192.86,192.84,0.03611735]
[1739387083598,0.03368216,192.88,192.84,0.03611735]
[1739387083900,5.1851,192.85,192.84,0.03611735]
[1739387084406,5.1851,192.85,192.75,5.1877]
[1739387084407,5.1863,192.81,192.75,5.1877]
[1739387084603,14.52927995,192.81,192.71,3.2727]
[1739387084800,5.1865,192.8,192.73,5.1881]
[1739387085595,0.03523246,192.78,192.75,0.03471048]
[1739387088505,5.1875,192.76,192.75,0.03471048]
[1739387088804,14.56451241,192.78,192.64,1.6454]
[1739387089105,14.52927995,192.73,192.59,14.52927995]
[1739387089306,5.1894,192.7,192.62,1.6454]
[1739387089803,5.1893,192.7,192.64,5.1906]
[1739387089999,0.03857445,192.68,192.64,0.03760094]
[1739387090197,5.19,192.67,192.64,0.03760094]
[1739387092205,0.03857445,192.68,192.64,0.03760094]
[1739387093307,5.22847445,192.68,192.64,0.03760094]
[1739387094305,0.03857445,192.68,192.64,0.03760094]
[1739387094600,14.52927995,192.79,192.65,14.52927995]
[1739387094806,14.52927995,192.79,192.73,5.1883]
[1739387095002,5.1872,192.78,192.73,5.1883]
[1739387095301,14.52927995,192.79,192.74,5.188]
[1739387095507,19.71517995,192.82,192.69,3.1391]
[1739387095706,0.03742112,192.78,192.75,0.03809437]
[1739387096106,5.1865,192.8,192.75,0.03809437]
[1739387096304,0.03850458,192.78,192.75,0.03809437]
[1739387096499,0.03850458,192.78,192.75,5.22579437]
[1739387096705,0.03850458,192.78,192.75,0.03809437]
[1739387100606,5.22570458,192.78,192.75,0.03809437]
[1739387100809,0.03850458,192.78,192.75,0.03809437]
[1739387101110,28.44517205,192.76,192.75,0.03809437]
[1739387101603,5.1883,192.74,192.68,5.1896]
[1739387101804,23.25767205,192.76,192.68,5.1896]
[1739387102009,23.25767205,192.76,192.66,1.6393]
[1739387102209,23.25767205,192.73,192.62,3.1688]
[1739387102410,23.25767205,192.73,192.64,5.1905]
[1739387102610,23.25767205,192.7,192.64,5.1905]
[1739387102811,23.29722342,192.7,192.67,0.03442646]
[1739387103214,23.29722342,192.7,192.58,1.6506]
[1739387103413,23.25767205,192.7,192.58,1.6506]
[1739387103709,5.1902,192.66,192.59,5.1919]
[1739387104113,23.25767205,192.67,192.56,59.07572436]
[1739387104314,0.03520394,192.64,192.61,0.03462152]
[1739387105017,5.22610394,192.64,192.61,0.03462152]
[1739387105218,0.03520394,192.64,192.61,0.03462152]
[1739387105518,23.29287599,192.64,192.61,0.03462152]
[1739387105712,5.1913,192.62,192.61,0.03462152]
[1739387107813,5.1917,192.61,192.53,5.1935]
[1739387108016,5.1917,192.61,192.54,5.1934]
[1739387108413,5.192,192.6,192.52,1.6547]
[1739387109011,0.03371355,192.58,192.54,0.03037892]
[1739387111121,5.22611355,192.58,192.54,0.03037892]
[1739387112920,5.22611355,192.58,192.54,5.22377892]
[1739387116024,0.03371355,192.58,192.54,5.22377892]
[1739387116624,0.03371355,192.58,192.54,0.03037892]
[1739387116820,0.03371355,192.58,192.57,5.1926]
[1739387117824,0.03371355,192.58,192.56,5.1928]
[1739387118527,0.03371355,192.58,192.54,5.22357892]
[1739387119623,14.60254991,192.58,192.54,0.03037892]
[1739387119822,14.56883636,192.55,192.54,0.03037892]
[1739387120219,19.76203636,192.55,192.54,0.03037892]
[1739387120423,14.56883636,192.55,192.46,1.6001]
[1739387120828,5.1944,192.51,192.44,5.1959]
[1739387121328,5.1944,192.51,192.36,1.6001]
[1739387121329,14.56883636,192.49,192.36,16.16893636]
[1739387121531,19.76383636,192.49,192.41,5.1968]
[1739387121834,19.76383636,192.49,192.37,3.261]
[1739387121835,14.60454339,192.49,192.37,3.261]
[1739387122131,14.56883636,192.49,192.37,3.261]
[1739387122330,0.03583697,192.45,192.37,3.261]
[1739387123129,0.03583697,192.45,192.43,5.1964]
[1739387123528,0.03583697,192.45,192.39,14.56883636]
[1739387124933,0.03583697,192.45,192.37,3.261]
[1739387124934,0.03583697,192.45,192.43,5.1962]
[1739387125233,0.03583697,192.45,192.37,3.261]
[1739387125436,0.03583697,192.45,192.41,5.1967]
[1739387126830,0.03583697,192.45,192.37,3.261]
[1739387127030,0.03583697,192.45,192.42,5.1967]
[1739387127236,0.03583697,192.45,192.37,3.261]
[1739387128139,5.23173697,192.45,192.4,5.1972]
[1739387129235,0.03583697,192.45,192.3,14.56883636]
[1739387129440,14.56883636,192.41,192.37,5.1978]
[1739387129640,14.56883636,192.41,192.31,3.1421]
[1739387129840,0.03438544,192.39,192.35,5.1984]
[1739387130237,0.03438544,192.39,192.27,14.56883636]
[1739387130433,14.56883636,192.38,192.33,5.1989]
[1739387130634,14.56883636,192.35,192.24,17.71093636]
[1739387130838,14.56883636,192.32,192.24,3.1421]
[1739387131136,14.56883636,192.32,192.18,71.8237025]
[1739387131346,14.56883636,192.29,192.19,33.56077332]
[1739387131842,1.6008,192.37,192.19,33.56077332]
[1739387131843,0.03680613,192.26,192.19,33.56077332]
[1739387132040,5.1998,192.31,192.25,5.2013]
[1739387132231,0.03323735,192.24,192.19,33.56077332]
[1739387132436,14.56883636,192.32,192.19,33.56077332]
[1739387132639,19.76823636,192.32,192.27,5.2007]
[1739387132937,0.03600376,192.31,192.19,4.8052]
[1739387133140,14.56883636,192.32,192.19,4.8052]
[1739387133342,0.03610242,192.27,192.19,4.8052]
[1739387134244,14.56883636,192.26,192.22,5.2018]
[1739387134441,14.56883636,192.26,192.19,4.8052]
[1739387134839,5.2014,192.25,192.19,8.4172]
[1739387135038,5.2014,192.25,192.19,6.7837]
[1739387135234,14.56883636,192.26,192.19,5.2027]
[1739387135439,19.77003636,192.26,192.2,5.2024]
[1739387135641,5.2012,192.26,192.14,1.6372]
[1739387135939,0.03332451,192.22,192.14,1.6372]
[1739387136342,0.03332451,192.22,192.21,5.2023]
[1739387137741,23.39283554,192.34,192.18,23.39283554]
[1739387138041,1.5119,192.36,192.18,23.39283554]
[1739387138247,1.5119,192.36,192.3,5.1998]
[1739387138542,23.39283554,192.37,192.21,23.39283554]
[1739387138749,23.60714554,192.4,192.35,5.1984]
[1739387138947,23.60714554,192.4,192.27,0.03400418]
[1739387139345,0.03890561,192.39,192.25,1.674]
[1739387139548,0.03890561,192.39,192.32,0.03400418]
[1739387139746,23.60714554,192.4,192.37,5.198]
[1739387140042,23.60714554,192.4,192.25,1.674]
[1739387140342,23.64595837,192.4,192.34,5.23232311]
[1739387140541,23.60714554,192.4,192.34,5.23232311]
[1739387140746,0.03925465,192.39,192.34,5.23232311]
[1739387142543,0.03925465,192.39,192.35,5.1983]
[1739387142748,0.03925465,192.39,192.34,0.03352311]
[1739387144348,0.03925465,192.39,192.37,5.1979]
[1739387145550,0.03925465,192.39,192.38,5.1978]
[1739387145745,0.21431,192.4,192.35,1.6489]
[1739387146145,0.21431,192.4,192.36,1.5766]
[1739387146545,0.21431,192.4,192.39,5.1975]
[1739387148147,0.21431,192.4,192.37,5.1978]
[1739387148747,5.41161,192.4,192.37,5.1978]
[1739387149053,0.21431,192.4,192.34,0.03352311]
[1739387149249,0.21431,192.4,192.36,5.1983]
[1739387149653,23.39283554,192.4,192.34,0.03352311]
[1739387150346,5.1975,192.4,192.34,0.03352311]
[1739387150747,0.03575144,192.41,192.34,0.03352311]
[1739387151453,0.03575144,192.41,192.4,5.1972]
[1739387155153,23.39283554,192.49,192.39,0.03445262]
[1739387155354,5.1952,192.48,192.44,5.1961]
[1739387155654,64.85212287,192.52,192.4,3.0253]
[1739387156054,5.1951,192.48,192.4,3.0253]
[1739387156250,64.85212287,192.52,192.4,3.0253]
[1739387156451,0.03996732,192.46,192.42,0.03696929]
[1739387156655,5.23556732,192.46,192.43,5.1962]
[1739387157056,0.03996732,192.46,192.42,0.03696929]
[1739387157454,23.43280286,192.46,192.42,0.03696929]
[1739387157752,14.59353767,192.44,192.42,0.03696929]
[1739387159056,5.1964,192.43,192.42,0.03696929]
[1739387160962,5.1971,192.41,192.37,5.1979]
[1739387161252,14.59353767,192.38,192.35,5.1983]
[1739387161955,14.6286511,192.38,192.35,5.23465755]
[1739387162253,14.6286511,192.38,192.35,0.03635755]
[1739387162447,5.1983,192.36,192.35,0.03635755]
[1739387163251,14.6286511,192.38,192.35,0.03635755]
[1739387164448,0.03511343,192.38,192.35,0.03635755]
[1739387165259,14.6286511,192.38,192.35,0.03635755]
[1739387165754,14.6286511,192.38,192.35,5.23485755]
[1739387167354,0.03511343,192.38,192.37,5.198]
[1739387167855,14.59353767,192.47,192.35,0.03635755]
[1739387168160,14.59353767,192.47,192.35,1.5463]
[1739387168563,14.59353767,192.47,192.42,5.1964]
[1739387168953,0.03654207,192.46,192.43,0.03585894]
[1739387169459,5.1961,192.44,192.43,0.03585894]
[1739387170662,5.23234207,192.46,192.43,0.03585894]
[1739387171656,19.78963767,192.44,192.43,0.03585894]
[1739387173363,14.59353767,192.44,192.31,1.6076]
[1739387173662,23.36299008,192.41,192.31,1.6076]
[1739387174452,0.0355661,192.38,192.34,0.03699622]
[1739387175162,0.0355661,192.38,192.35,5.1983]
[1739387175463,0.0355661,192.38,192.34,0.03699622]
[1739387176055,5.1981,192.37,192.34,0.03699622]
[1739387176260,23.39855618,192.38,192.34,0.03699622]
[1739387176865,28.56159008,192.35,192.34,0.03699622]
[1739387177466,5.1986,192.35,192.34,0.03699622]
[1739387178563,23.39855618,192.38,192.22,48.18157268]
[1739387178769,5.1989,192.34,192.29,5.2002]
[1739387179159,23.36299008,192.38,192.23,1.6702]
[1739387179363,5.1995,192.32,192.27,5.2007]
[1739387179667,0.03676788,192.31,192.28,0.03334199]
[1739387181266,5.23646788,192.31,192.28,0.03334199]
[1739387181860,0.03676788,192.31,192.28,0.03334199]
[1739387182065,5.2001,192.3,192.28,0.03334199]
[1739387187674,0.03676788,192.31,192.28,0.03334199]
[1739387187871,5.2002,192.29,192.28,0.03334199]
[1739387190875,5.2,192.3,192.28,0.03334199]
[1739387191180,0.03676788,192.31,192.28,0.03334199]
[1739387192184,23.39975796,192.31,192.28,0.03334199]
[1739387192575,5.2002,192.29,192.28,0.03334199]
[1739387194080,5.201,192.27,192.22,5.2019]
[1739387194877,5.201,192.26,192.22,5.2019]
[1739387195181,0.03538309,192.26,192.16,4.7106]
[1739387195585,5.2022,192.22,192.16,4.7106]
[1739387195979,0.03278586,192.21,192.16,4.7106]
[1739387196586,0.03278586,192.21,192.18,5.2031]
[1739387198285,0.03278586,192.21,192.19,5.2029]
[1739387198475,0.03278586,192.21,192.16,4.7106]
[1739387198680,0.03278586,192.21,192.2,5.2026]
[1739387202787,14.62407162,192.27,192.23,5.2018]
[1739387202992,14.62407162,192.3,192.19,0.03374313]
[1739387203196,14.62407162,192.33,192.2,14.62407162]
[1739387203388,14.62407162,192.33,192.28,5.2004]
[1739387203588,14.62407162,192.33,192.2,14.62407162]
[1739387203987,0.03922856,192.28,192.25,0.03374313]
[1739387205191,0.03922856,192.28,192.27,5.2007]
[1739387205593,0.03922856,192.28,192.26,5.201]
[1739387207394,0.03922856,192.28,192.25,0.03374313]
[1739387207596,14.62407162,192.27,192.25,0.03374313]
[1739387208394,5.201,192.26,192.25,0.03374313]
[1739387209892,14.62407162,192.27,192.25,0.03374313]
[1739387210199,0.03922856,192.28,192.25,0.03374313]
[1739387210698,0.03922856,192.28,192.27,5.2007]
[1739387212395,14.62407162,192.3,192.25,0.03374313]
[1739387212602,14.62407162,192.33,192.29,5.2002]
[1739387213299,14.62407162,192.33,192.3,5.1999]
[1739387213701,14.65727713,192.33,192.3,5.23654553]
[1739387215292,14.65727713,192.33,192.3,0.03664553]
[1739387215602,19.85647713,192.33,192.3,0.03664553]
[1739387216803,5.1995,192.32,192.3,0.03664553]
[1739387217709,5.1997,192.31,192.3,0.03664553]
[1739387222809,5.1994,192.32,192.3,0.03664553]
[1739387223510,0.03320551,192.33,192.3,0.03664553]
[1739387224206,0.03320551,192.33,192.32,5.1994]
[1739387226207,20.02470162,192.39,192.3,0.03664553]
[1739387226409,0.20303,192.39,192.3,0.03664553]
[1739387226606,14.82710162,192.39,192.3,0.03664553]
[1739387227511,0.03958157,192.36,192.3,0.03664553]
[1739387228511,0.03958157,192.36,192.32,5.1993]
[1739387228913,14.66365319,192.36,192.3,0.03664553]
[1739387229115,14.62407162,192.33,192.3,0.03664553]
[1739387230113,5.1997,192.31,192.3,0.03664553]
[1739387233314,14.62407162,192.33,192.24,5.2013]
[1739387233519,5.201,192.27,192.15,4.7018]
[1739387233819,14.62407162,192.28,192.15,4.7018]
[1739387234215,5.2013,192.25,192.15,4.7018]
[1739387234414,19.82537162,192.25,192.15,4.7018]
[1739387234617,0.03359874,192.22,192.18,0.03612208]
[1739387234813,0.03359874,192.22,192.21,5.2024]
[1739387235415,0.03359874,192.22,192.19,5.2027]
[1739387236420,0.03359874,192.22,192.18,0.03612208]
[1739387236611,5.2025,192.21,192.18,0.03612208]
[1739387238426,5.2027,192.2,192.18,0.03612208]
[1739387239216,14.65767036,192.22,192.18,0.03612208]
[1739387239217,0.03359874,192.22,192.18,0.03612208]
[1739387239422,14.62407162,192.31,192.18,0.03612208]
[1739387239623,5.2006,192.28,192.18,0.03612208]
[1739387239823,14.62407162,192.31,192.17,14.62407162]
[1739387240323,14.62407162,192.34,192.23,14.62407162]
[1739387240529,0.03679739,192.26,192.24,3.0933]
[1739387240717,5.1985,192.36,192.31,5.1996]
[1739387240914,14.62407162,192.37,192.26,14.62407162]
[1739387241114,99.67044557,192.4,192.26,14.62407162]
[1739387241322,85.04637395,192.38,192.26,14.62407162]
[1739387241517,85.04637395,192.38,192.3,5.1999]
[1739387241518,0.22148,192.31,192.3,5.1999]
[1739387241720,85.04637395,192.38,192.29,14.62407162]
[1739387241916,0.03307464,192.32,192.31,5.1997]
[1739387242121,85.04637395,192.38,192.29,14.66333563]
[1739387243219,0.03362201,192.35,192.29,14.66333563]
[1739387244021,0.03362201,192.35,192.34,5.1988]
[1739387246315,0.03362201,192.35,192.32,5.1991]
[1739387246920,0.03362201,192.35,192.29,0.03926401]
[1739387247121,5.23232201,192.35,192.31,5.1996]
[1739387247826,0.03362201,192.35,192.32,5.1994]
[1739387248021,0.03362201,192.35,192.29,0.03926401]
[1739387248421,0.03362201,192.35,192.3,5.1997]
[1739387248821,19.82297162,192.34,192.3,5.1997]
[1739387249028,14.62407162,192.34,192.29,0.03926401]
[1739387249727,14.62407162,192.34,192.3,5.1999]
[1739387250028,0.03362201,192.35,192.29,0.03926401]
[1739387251423,0.03362201,192.35,192.34,5.1988]
[1739387256928,0.03362201,192.35,192.29,0.03926401]
[1739387258132,0.03362201,192.35,192.33,5.1991]
[1739387259123,0.03362201,192.35,192.29,0.03926401]
[1739387259329,0.03362201,192.35,192.34,5.1988]
[1739387261331,0.03362201,192.35,192.32,5.1992]
[1739387261533,5.23232201,192.35,192.32,5.1992]
[1739387263535,0.03362201,192.35,192.32,5.1992]
[1739387263738,0.03362201,192.35,192.34,5.1988]
[1739387266835,14.62407162,192.43,192.31,14.62407162]
[1739387267032,1.5805,192.49,192.34,14.62407162]
[1739387267033,14.62407162,192.46,192.34,14.62407162]
[1739387267439,19.81977162,192.46,192.34,14.62407162]
[1739387268038,0.03517617,192.42,192.41,5.1969]
[1739387271636,0.03517617,192.42,192.38,0.03579319]
[1739387271833,0.03517617,192.42,192.39,5.1973]
[1739387273132,0.03517617,192.42,192.38,0.03579319]
[1739387273336,14.62407162,192.4,192.38,0.03579319]
[1739387275143,5.1975,192.39,192.38,0.03579319]
[1739387280544,0.03517617,192.42,192.38,0.03579319]
[1739387280840,14.62407162,192.39,192.22,28.75557332]
[1739387281042,14.62407162,192.31,192.22,28.75557332]
[1739387281547,5.2008,192.27,192.22,28.75557332]
[1739387281847,0.03580667,192.26,192.23,28.79223786]
[1739387282838,14.62407162,192.25,192.23,28.79223786]
[1739387283242,5.2015,192.24,192.23,28.79223786]
[1739387283746,5.2015,192.24,192.22,57.25486614]
[1739387283747,14.62407162,192.25,192.22,57.25486614]
[1739387283946,14.62407162,192.25,192.22,54.74446614]
[1739387284148,5.2018,192.23,192.22,48.57086614]
[1739387284340,14.62407162,192.25,192.09,7.22102871]
[1739387284646,14.62407162,192.22,192.09,7.22102871]
[1739387284846,0.0351189,192.19,192.16,0.03958792]
[1739387286146,5.2381189,192.19,192.16,0.03958792]
[1739387287148,0.0351189,192.19,192.16,0.03958792]
[1739387287348,14.65919052,192.19,192.16,0.03958792]
[1739387288052,5.2034,192.17,192.16,0.03958792]
[1739387291645,5.2047,192.13,192.1,1.5299]
[1739387291843,5.2047,192.13,192.02,16.19077162]
[1739387292047,14.62407162,192.14,192.06,5.2062]
[1739387292350,5.205,192.12,192.03,1.5986]
[1739387292546,14.62407162,192.14,192.07,5.2061]
[1739387292746,0.03299002,192.09,192.07,5.2061]
[1739387293052,5.2045,192.13,192.03,1.5986]
[1739387293248,0.03782389,192.1,192.06,0.03574867]
[1739387293848,5.24312389,192.1,192.06,0.03574867]
[1739387294452,5.2057,192.09,192.06,0.03574867]
[1739387294650,0.03782389,192.1,192.06,0.03574867]
[1739387294946,5.2061,192.07,192.06,0.03574867]
[1739387295252,14.62407162,192.08,191.95,229.87286493]
[1739387295253,14.62407162,192.08,191.95,215.24879331]
[1739387295444,16.8747,192.18,191.96,3.1872]
[1739387295445,14.62407162,192.05,191.96,3.1872]
[1739387295849,14.62407162,192.08,191.96,17.81127162]
[1739387296043,5.2072,192.04,191.99,5.2083]
[1739387296246,14.62407162,192.02,192.01,0.03436438]
[1739387297453,34.45564324,192.02,191.95,215.24879331]
[1739387297653,14.62407162,191.98,191.95,96.83748838]
[1739387298254,14.62407162,191.98,191.95,55.77690164]
[1739387298456,14.62407162,191.98,191.92,6.7678]
[1739387298755,14.62407162,191.95,191.9,85.57813929]
[1739387298955,14.62407162,191.92,191.9,85.57813929]
[1739387299153,14.62407162,191.92,191.91,0.02514901]
[1739387302454,14.62407162,191.92,191.85,1.6459]
[1739387302762,14.62407162,191.89,191.88,5.2113]
[1739387303559,0.03559847,191.93,191.87,14.62407162]
[1739387303755,14.62407162,192.01,191.88,1.6143]
[1739387303955,14.62407162,192.01,191.88,1.64989847]
[1739387304152,19.83187162,192.01,191.97,5.2088]
[1739387304361,14.62407162,192.04,191.93,14.62407162]
[1739387304559,14.62407162,192.04,191.94,3.242]
[1739387304762,14.62407162,192.04,192.0,5.2078]
[1739387304962,0.0386771,192.01,192.0,5.2078]
[1739387305461,14.62407162,192.07,191.97,0.03559847]
[1739387305664,79.76124996,192.09,191.97,0.03559847]
[1739387305958,5.2061,192.08,192.02,5.2073]
[1739387306666,0.03912265,192.07,192.03,0.03753567]
[1739387308764,5.24522265,192.07,192.03,0.03753567]
[1739387311964,5.24522265,192.07,192.03,5.24473567]
[1739387312158,0.03912265,192.07,192.03,0.03753567]
[1739387312563,0.03912265,192.07,192.05,5.2066]
[1739387315258,0.03912265,192.07,192.06,5.2064]
[1739387318666,0.03912265,192.07,192.04,5.2067]
[1739387320361,28.64256005,192.12,192.06,5.2062]